Cogmind - Beta 15 @@@ ROGUE MODE // 2025.09.02 @ 21:52:54 Player: erfael Result: Self-destructed Performance ------------- Evolutions (4) 2000 Regions Visited (12) 2400 Robots Destroyed (88) 440 Value Destroyed (2375) 2375 Prototype IDs (34) 680 Alien Tech Used (0) 0 Bonus (707) 707 TOTAL SCORE: 8602 Bonus ------- Follower Combat Kills 107 Aligned with FarCom 300 Met Data Miner 300 Cogmind --------- Core Integrity 336/850 Matter 300/300 Energy 100/100 System Corruption 1% Temperature Cool (0) Movement Core (350) Ox6 Location -6/Lower Caves Parts ------- > --- POWER (2) -------- (None) > --- PROPULSION (4) --- (None) > --- UTILITY (6) ------ Large Storage Unit Improved Signal Interpreter > --- WEAPON (3) ------- (None) > --- INVENTORY (15) --- Transmission Jammer Hardened Medium Armor Plating Lightning Gun Lightning Gun Field Laser Field Laser Gatling Laser Axe Peak State ------------ > --- POWER ------------ Deuterium Engine Reinforced Deuterium Engine > --- PROPULSION ------- Improved Medium Treads Improved Medium Treads Carbon-fiber Leg Improved Titanium Leg > --- UTILITY ---------- Improved Cooling System Medium Storage Unit Improved Signal Interpreter Improved Terrain Scan Processor Hardened Medium Armor Plating > --- WEAPON ----------- Field Laser Gatling Laser > --- INVENTORY -------- Improved Terrain Scanner Seismic Detector Transmission Jammer Field Laser Heavy Plasma Cannon Assault Cannon Rocket Launcher Field Lobotomy Kit Axe [Rating: 48] Favorites ----------- Power Nuclear Core Engine Reinforced Deuterium Engine Power Core Nuclear Core Propulsion Aluminum Leg Treads Improved Medium Treads Leg Aluminum Leg Utility Medium Storage Unit Device Improved Terrain Scanner Storage Medium Storage Unit Processor Improved Terrain Scan Processor Protection Improved Light Armor Plating Weapon Field Laser Energy Gun Field Laser Energy Cannon Heavy Plasma Cannon Ballistic Gun Minigun Ballistic Cannon Assault Cannon Launcher Rocket Launcher Special Weapon Field Lobotomy Kit Slashing Weapon Axe Build | -11 -10 -10 -10 -9 -8 -7 -7 -7 -7 -6 -6 -6 ------- Run | Yrd Mat Min Exi Min Mat Fac Low Low Dat Pro Fac Low Slots Evolved 8 | . . . . . 4 2 . . . . 2 . Power 1 | . . . . . . 1 . . . . . . Propulsion 2 | . . . . . 2 . . . . . . . Utility 4 | . . . . . 2 1 . . . . 1 . Weapon 1 | . . . . . . . . . . . 1 . Parts Attached 56 | 7 9 9 . 2 6 8 3 6 . 3 3 . Power 8 | 1 2 2 . . . 1 1 1 . . . . Engine 7 | 1 2 1 . . . 1 1 1 . . . . Core 1 | . . 1 . . . . . . . . . . Reactor . | . . . . . . . . . . . . . Propulsion 15 | 2 3 3 . . 1 2 1 2 . 1 . . Treads 3 | . . . . . . . 1 2 . . . . Leg 12 | 2 3 3 . . 1 2 . . . 1 . . Wheel . | . . . . . . . . . . . . . Hover . | . . . . . . . . . . . . . Flight . | . . . . . . . . . . . . . Utility 16 | 2 2 1 . 1 2 3 1 2 . . 2 . Device 6 | 1 1 1 . . . 1 1 1 . . . . Storage 4 | 1 1 . . 1 . . . . . . 1 . Processor 3 | . . . . . 1 2 . . . . . . Hackware . | . . . . . . . . . . . . . Protection 3 | . . . . . 1 . . 1 . . 1 . Artifact . | . . . . . . . . . . . . . Weapon 17 | 2 2 3 . 1 3 2 . 1 . 2 1 . Energy Gun 6 | 1 1 1 . 1 . 1 . . . 1 . . Energy Cannon 1 | . . . . . . . . . . 1 . . Ballistic Gun 2 | 1 . . . . . . . . . . 1 . Ballistic Cannon 1 | . . . . . . 1 . . . . . . Launcher 5 | . 1 2 . . 1 . . 1 . . . . Special Weapon 1 | . . . . . 1 . . . . . . . Impact Weapon . | . . . . . . . . . . . . . Slashing Weapon 1 | . . . . . 1 . . . . . . . Piercing Weapon . | . . . . . . . . . . . . . Special Melee Weapon . | . . . . . . . . . . . . . Unidentified Prototypes . | . . . . . . . . . . . . . Parts Lost 27 | . 1 3 . . . . 6 1 . 4 . 12 Power 4 | . . . . . . . 2 . . 1 . 1 Propulsion 8 | . . . . . . . 3 . . 2 . 3 Utility 8 | . 1 1 . . . . . 1 . . . 5 Weapon 7 | . . 2 . . . . 1 . . 1 . 3 Highest Loss Streak 5 | . 1 1 . . . . 4 1 . 3 . 5 To Critical Strikes . | . . . . . . . . . . . . . Average Backups 8 | 5 7 9 10 9 8 9 9 9 9 8 7 8 Power . | . 1 1 2 1 1 . . . . . . . Propulsion . | 1 2 2 2 2 . . . . . . . . Utility 2 | 1 2 1 1 2 3 3 3 3 3 3 2 2 Weapon 4 | . 2 2 4 2 3 4 4 4 5 4 5 6 Tool/Special . | . . . . . . . . . . . . . Unused Backups 11 | 1 2 1 . 2 1 2 . . . . . 2 Power 1 | . . . . 1 . . . . . . . . Propulsion 2 | . 2 . . . . . . . . . . . Utility 5 | 1 . . . 1 1 2 . . . . . . Weapon 3 | . . 1 . . . . . . . . . 2 Tool/Special . | . . . . . . . . . . . . . Average Slot Usage (%) 86 | . 98 96 73 99 99 99 85 95 100 89 80 65 Engine 6 | . 14 10 . . . 7 6 13 15 12 6 1 Core 3 | . . 4 14 14 9 7 3 . . . . . Treads 5 | . . . . . . . 3 20 23 15 13 6 Leg 17 | . 28 28 28 28 35 30 17 7 7 7 6 1 Device 10 | . 12 10 14 14 9 13 7 7 7 7 12 12 Storage 8 | . 14 14 14 14 9 7 7 7 7 7 6 6 Processor 9 | . . . . . 8 7 15 15 15 15 13 12 Protection 5 | . . . . . 8 7 6 6 7 7 6 5 Energy Gun 5 | . 13 3 . 13 10 8 4 7 7 9 1 . Energy Cannon 1 | . . . . . . . . . . 2 2 5 Ballistic Gun 4 | . 14 14 2 . . . . . . . 4 5 Ballistic Cannon 1 | . . . . . . 2 6 2 . . . 2 Launcher 2 | . . 10 . 14 3 . 2 4 7 2 . . Peak Build Rating 48 | 8 8 14 12 17 31 42 36 46 45 48 48 48 Average Rating 28 | 6 7 9 11 16 23 33 30 42 45 43 43 35 On Entrance 25 | . 8 8 14 12 17 23 36 29 45 45 41 48 Naked Turns . | . . . . . . . . . . . . . Heaviest Build 97 | 13 19 25 19 97 32 38 35 52 52 52 64 63 Greatest Support 80 | 20 20 20 20 20 40 50 50 80 80 80 60 60 Greatest Overweight (x) 14 | 1 . 1 . 4 . . 1 1 . 3 1 14 Average Overweight (x) . | . . . . 1 . . . . . . . 3 Largest Inventory Capacity 25 | 8 10 10 10 25 10 10 10 10 10 10 15 15 Average Capacity 11 | 6 8 10 10 10 10 10 10 10 10 10 14 15 Most Carried 10 | 7 8 10 10 10 10 10 10 10 9 9 9 9 Average Carried 8 | 5 7 9 9 9 8 9 9 9 9 8 7 8 Final Capacity 15 | 8 10 10 10 10 10 10 10 10 10 10 15 15 Final Carried 10 | 7 8 9 10 10 10 10 8 9 9 7 9 8 Class Distribution -------------------- 37% | Mutant 23% | Scavenger-Skirmisher 22% | Scavenger-Mutant 12% | Scavenger-Assassin 3% | Skirmisher Dominant Class ---------------- Mutant | -10/Materials Scavenger-Mutant | -10/Mines Mutant | -10/Exiles Skirmisher | -9/Mines Scavenger-Skirmisher | -8/Materials Scavenger-Skirmisher | -7/Factory Mutant | -7/Lower Caves Scavenger-Mutant | -7/Lower Caves Scavenger-Mutant | -7/Data Miner Scavenger-Mutant | -6/Proximity Caves Scavenger-Assassin | -6/Factory Mutant | -6/Lower Caves Resources | -11 -10 -10 -10 -9 -8 -7 -7 -7 -7 -6 -6 -6 ----------- Run | Yrd Mat Min Exi Min Mat Fac Low Low Dat Pro Fac Low Matter Collected 2086 | 283 169 358 . 131 79 253 279 81 . 257 78 118 Remotely . | . . . . . . . . . . . . . Salvage Created 2189 | 151 384 224 . . 56 176 230 92 . 429 90 357 Parts 143 | 19 27 19 . . 19 10 8 4 . 13 8 16 Haulers Intercepted 2 | . 1 . . . . 1 . . . . . . Recyclers Shooed 3 | . 2 1 . . . . . . . . . . Parts Field Recycled . | . . . . . . . . . . . . . Retrieved Matter . | . . . . . . . . . . . . . Parts Self-Destructed 40 | . . . . . . . 7 4 . 13 . 16 Prevented . | . . . . . . . . . . . . . Kills | -11 -10 -10 -10 -9 -8 -7 -7 -7 -7 -6 -6 -6 ------- Run | Yrd Mat Min Exi Min Mat Fac Low Low Dat Pro Fac Low Combat Hostiles Destroyed 67 | . 11 13 . 2 6 2 11 3 . 11 1 7 Guns 15 | . 4 2 . 1 . 1 1 1 . . 1 4 Cannons 12 | . . . . . . 1 4 1 . 4 . 2 AOE 38 | . 7 11 . 1 6 . 6 1 . 6 . . Classes Destroyed 14 | 2 5 1 . . . 3 3 . . . . . Worker 7 | . 2 2 . . 1 2 . . . . . . Builder 5 | . 2 1 . . 1 . . . . . 1 . Tunneler 7 | 5 . 2 . . . . . . . . . . Hauler 2 | . 1 . . . . 1 . . . . . . Recycler 2 | 1 1 . . . . . . . . . . . Mechanic 1 | . . . . . . 1 . . . . . . Operator 1 | . . . . . . 1 . . . . . . Swarmer 26 | . 6 6 . . 6 . 6 . . . . 2 Grunt 27 | . 5 5 . . . 1 2 2 . 9 . 3 Brawler 1 | . . . . . . . 1 . . . . . Duelist 2 | . . . . . . . 1 . . 1 . . Sentry 4 | . . . . . . . 1 1 . . 1 1 Programmer 3 | . . . . . . 1 . . . 1 . 1 Assembled 4 | . . 2 . 2 . . . . . . . . Best Kill Streak 7 | 5 6 7 . 2 4 2 6 2 . 4 2 3 Combat Bots Only 6 | . 5 6 . 2 3 1 6 2 . 4 1 3 Max Kills in Single Turn 4 | 1 4 2 . 1 2 1 2 1 . 2 1 1 Gunslinging . | . . . . . . . . . . . . . Exploded 2 | . 2 2 . 1 2 . 2 1 . 2 . . Melee . | . . . . . . . . . . . . . Uniques/NPCs Destroyed . | . . . . . . . . . . . . . Combat | -11 -10 -10 -10 -9 -8 -7 -7 -7 -7 -6 -6 -6 -------- Run | Yrd Mat Min Exi Min Mat Fac Low Low Dat Pro Fac Low Hostile Shots Fired 514 | . 39 46 . 9 12 3 82 48 . 77 45 153 Missed 187 | . 10 19 . 4 3 1 32 17 . 34 21 46 Hits 327 | . 29 27 . 5 9 2 50 31 . 43 24 107 Melee 9 | . . 1 . . . . 6 . . 2 . . Projectile 318 | . 29 26 . 5 9 2 44 31 . 41 24 107 Critical Strikes 4 | . . . . 1 . . 2 1 . . . . Damage Taken 4724 | . 355 438 . 86 76 30 950 244 . 907 179 1459 Core 1027 | . 78 115 . . 16 . 180 36 . 88 15 499 Absorbed by Shields . | . . . . . . . . . . . . . Core Remaining (%) 68 | 100 . . . 22 97 . . . . 56 . . Volleys Fired 179 | 13 26 33 . 4 9 15 25 8 . 30 2 14 Largest 3 | 2 2 2 . 2 2 2 2 2 . 2 3 3 Hottest 153 | 60 70 70 . 99 128 100 117 117 . 153 152 152 Shots Fired 344 | 26 50 65 . 8 14 26 44 16 . 57 6 32 Gun 207 | 26 40 48 . 4 7 14 10 8 . 34 2 14 Cannon 68 | . . . . . . 11 23 3 . 9 4 18 Launcher 64 | . 10 17 . 4 6 . 9 5 . 13 . . Special 5 | . . . . . 1 1 2 . . 1 . . Kinetic 131 | 13 26 33 . . . 11 23 3 . . 4 18 Thermal 144 | 13 14 15 . 4 7 14 10 8 . 43 2 14 Explosive 64 | . 10 17 . 4 6 . 9 5 . 13 . . Electromagnetic . | . . . . . . . . . . . . . Robot Hit Streak 14 | 4 11 12 . 1 2 8 10 14 . 12 6 7 Robot Miss Streak 4 | 2 2 2 . 2 2 1 3 2 . 4 . 2 Penetration Max . | . . . . . . . . . . . . . Secondary Targets . | . . . . . . . . . . . . . Shots Hit Robots 200 | 15 32 31 . 1 3 19 21 15 . 39 6 18 Core Hits 157 | 8 27 27 . 3 10 7 20 8 . 34 2 11 Critical Kills 2 | . 1 . . . . . . . . . . 1 Critical Parts Destroyed 1 | . . . . . . . . . . . . 1 Critical Strikes 7 | . 2 . . . . 2 . 1 . . . 2 Burn 2 | . 1 . . . . 1 . . . . . . Meltdown 1 | . . . . . . . . . . . . 1 Destroy 2 | . 1 . . . . . . . . . . 1 Blast 2 | . . . . . . 1 . 1 . . . . Melee Attacks 17 | . . . . . 8 2 . . . . 7 . Impact . | . . . . . . . . . . . . . Slashing 17 | . . . . . 8 2 . . . . 7 . Piercing . | . . . . . . . . . . . . . Sneak Attacks 2 | . . . . . . 1 . . . . 1 . Combat Hostiles . | . . . . . . . . . . . . . Follow-up Attacks . | . . . . . . . . . . . . . Damage Inflicted 7187 | 152 934 1183 . 153 359 477 1138 374 . 1734 205 478 Guns 2070 | 152 250 255 . 33 19 157 206 211 . 538 30 219 Cannons 1217 | . . . . . . 239 317 46 . 265 91 259 Explosions 3732 | . 681 928 . 120 340 . 615 117 . 931 . . Melee 165 | . . . . . . 81 . . . . 84 . Ramming 3 | . 3 . . . . . . . . . . . Kinetic 1219 | 64 122 155 . . . 239 317 46 . . 57 219 Thermal 2068 | 88 128 100 . 33 19 157 206 211 . 803 64 259 Explosive 3732 | . 681 928 . 120 340 . 615 117 . 931 . . Electromagnetic . | . . . . . . . . . . . . . Impact . | . . . . . . . . . . . . . Slashing 165 | . . . . . . 81 . . . . 84 . Piercing . | . . . . . . . . . . . . . Highest Corruption 2 | . . 2 2 2 . . . . . . . 1 Average Corruption 1 | . . 2 2 2 . . . . . . . 1 Corruption Purged . | . . . . . . . . . . . . . Corruption Blocked . | . . . . . . . . . . . . . Effects 29 | . . 5 3 6 . . . . . . . 15 Message Errors 8 | . . 2 1 3 . . . . . . . 2 Matter Fused 9 | . . 1 . 2 . . . . . . . 6 Heat Flow Errors 2 | . . . . . . . . . . . . 2 Energy Discharges 4 | . . . 1 . . . . . . . . 3 Data Loss (minor) 3 | . . . 1 . . . . . . . . 2 Data Loss (major) 1 | . . 1 . . . . . . . . . . Alerts 2 | . . 1 . 1 . . . . . . . . Overload Shots . | . . . . . . . . . . . . . Overflow Damage 254 | . 32 44 . . 1 41 52 . . 40 44 . Projectiles 10 | . . . . . . . 1 . . 9 . . Explosions 159 | . 32 44 . . 1 . 51 . . 31 . . Melee 85 | . . . . . . 41 . . . . 44 . Knockbacks 6 | . . . . . . 4 2 . . . . . Impact . | . . . . . . . . . . . . . Kinetic 6 | . . . . . . 4 2 . . . . . Secondary . | . . . . . . . . . . . . . Self-Inflicted Damage 342 | . 86 120 . 22 1 . 55 . . 58 . . Shots 13 | . 3 3 . 1 1 . 2 . . 3 . . Rammed . | . . . . . . . . . . . . . Targets Rammed 1 | . 1 . . . . . . . . . . . Kicked 1 | . 1 . . . . . . . . . . . Crushed . | . . . . . . . . . . . . . Highest Temperature 211 | 60 102 136 . 90 120 135 155 105 . 138 12 211 Average Temperature 44 | 30 27 37 . 46 49 58 62 34 . 32 9 64 Received Heat Transfer 885 | . 72 102 . . . 18 90 96 . 306 48 153 Siege Activations . | . . . . . . . . . . . . . Martial Activations . | . . . . . . . . . . . . . Shielding Activations . | . . . . . . . . . . . . . Robots Disrupted . | . . . . . . . . . . . . . Combat Hostiles . | . . . . . . . . . . . . . Robots Corrupted . | . . . . . . . . . . . . . Combat Hostiles . | . . . . . . . . . . . . . Parts Fried . | . . . . . . . . . . . . . Impact Corruptions . | . . . . . . . . . . . . . Robots Melted 2 | . . . . . . . . . . 1 . 1 Combat Hostiles 2 | . . . . . . . . . . 1 . 1 Parts Melted 7 | . 3 . . . . 1 . 1 . . . 2 Heat Transferred 4516 | 200 444 296 . 74 37 407 475 475 . 1608 100 400 Parts Sabotaged . | . . . . . . . . . . . . . Parts Stolen . | . . . . . . . . . . . . . Parts Stripped . | . . . . . . . . . . . . . Power Chain Reactions . | . . . . . . . . . . . . . Alert | -11 -10 -10 -10 -9 -8 -7 -7 -7 -7 -6 -6 -6 ------- Run | Yrd Mat Min Exi Min Mat Fac Low Low Dat Pro Fac Low Maximum Alert Level 1 | . 1 . . . . . . . . . . . Low Security (%) 98 | 100 85 100 . 100 100 100 . . . . 100 . Level 1 1 | . 14 . . . . . . . . . . . Level 2 . | . . . . . . . . . . . . . Level 3 . | . . . . . . . . . . . . . Level 4 . | . . . . . . . . . . . . . Level 5 . | . . . . . . . . . . . . . High Security . | . . . . . . . . . . . . . Max Security . | . . . . . . . . . . . . . Peak Influence 235 | 15 235 176 . 17 128 45 . . . . 30 . Initial 56 | . . 56 . . . 45 . . . . 20 . Average 36 | 2 118 66 . 1 30 6 . . . . 3 . Influence Increases 2041 | 30 367 407 . 27 256 126 245 92 . 275 41 175 Destroy 0b10 Robot/C 1320 | . 220 240 . . 120 60 220 80 . 220 20 140 Destroy 0b10 Robot/NC 125 | 30 30 25 . . 10 25 . . . . 5 . Destroy Leader 204 | . 42 30 . . 20 22 10 10 . 40 10 20 Allied During Kill 5 | . . 1 . . . 2 . 2 . . . . Disable Machine 90 | . 30 . . . 45 15 . . . . . . Destroy Structure 237 | . 45 96 . 27 61 2 . . . . 6 . Lose Combat Pursuer 60 | . . 15 . . . . 15 . . 15 . 15 Influence Decreases 2041 | 30 222 497 55 27 155 224 248 92 . 242 52 197 Entered New Map 224 | . . 89 55 . . 56 2 . . . 13 9 Time Decay 1627 | 30 212 368 . 27 155 148 196 72 . 232 39 148 Lost Part 130 | . 10 20 . . . . 50 . . 10 . 40 Lost Ally 60 | . . 20 . . . 20 . 20 . . . . Squads Dispatched 5 | . 2 . . . . 2 . . . . 1 . Investigation . | . . . . . . . . . . . . . Extermination 1 | . . . . . . 1 . . . . . . Reinforcement 4 | . 2 . . . . 1 . . . . 1 . Assault . | . . . . . . . . . . . . . Garrison . | . . . . . . . . . . . . . Intercept . | . . . . . . . . . . . . . Searches Triggered . | . . . . . . . . . . . . . Construction Impeded . | . . . . . . . . . . . . . Haulers Reinforced . | . . . . . . . . . . . . . Active Scanning Responses . | . . . . . . . . . . . . . Cargo Convoy Interrupts . | . . . . . . . . . . . . . Stealth | -11 -10 -10 -10 -9 -8 -7 -7 -7 -7 -6 -6 -6 --------- Run | Yrd Mat Min Exi Min Mat Fac Low Low Dat Pro Fac Low Distress Signals 3 | . 2 . . . 1 . . . . . . . Communications Jammed 1 | . . . . . . 1 . . . . . . Distress Signals 1 | . . . . . . 1 . . . . . . Times Spotted 90 | . 15 16 . 2 8 7 13 4 . 13 2 10 Peak Tracking Total 7 | . 4 3 . 2 4 2 7 2 . 4 2 3 Tactical Retreats 4 | . . 1 . . . . 1 . . 1 . 1 Traps | -11 -10 -10 -10 -9 -8 -7 -7 -7 -7 -6 -6 -6 ------- Run | Yrd Mat Min Exi Min Mat Fac Low Low Dat Pro Fac Low Traps Triggered 1 | . . . . . . 1 . . . . . . Indirectly . | . . . . . . . . . . . . . Trap Hack Attempts . | . . . . . . . . . . . . . Triggered . | . . . . . . . . . . . . . Disarmed . | . . . . . . . . . . . . . Reprogrammed . | . . . . . . . . . . . . . Reused . | . . . . . . . . . . . . . Traps Extracted . | . . . . . . . . . . . . . Installed . | . . . . . . . . . . . . . Triggered . | . . . . . . . . . . . . . Machines | -11 -10 -10 -10 -9 -8 -7 -7 -7 -7 -6 -6 -6 ---------- Run | Yrd Mat Min Exi Min Mat Fac Low Low Dat Pro Fac Low Machines Disabled 7 | . 3 . . . 3 1 . . . . . . Max in Single Turn 1 | . 1 . . . 1 1 . . . . . . Machines Repaired . | . . . . . . . . . . . . . Machines Dismantled . | . . . . . . . . . . . . . Machines Sabotaged . | . . . . . . . . . . . . . Overloaded Fab Kills . | . . . . . . . . . . . . . Hacking | -11 -10 -10 -10 -9 -8 -7 -7 -7 -7 -6 -6 -6 --------- Run | Yrd Mat Min Exi Min Mat Fac Low Low Dat Pro Fac Low Machines Accessed 13 | . 3 1 1 . 1 3 . 1 2 . 1 . Terminals 7 | . 3 . . . 1 3 . . . . . . Fabricators . | . . . . . . . . . . . . . Repair Stations 1 | . . . . . . . . . . . 1 . Recycling Units . | . . . . . . . . . . . . . Scanalyzers . | . . . . . . . . . . . . . Garrison Access . | . . . . . . . . . . . . . Total Hacks 37 | . 7 1 1 . 1 5 . 1 19 . 2 . Successful 26 | . 2 1 1 . . 1 . 1 19 . 1 . Failed 11 | . 5 . . . 1 4 . . . . 1 . Catastrophic 2 | . 1 . . . . 1 . . . . . . Database Lockouts . | . . . . . . . . . . . . . Manual 11 | . 4 . 1 . 1 5 . . . . . . Terminals 13 | . 7 . . . 1 5 . . . . . . Fabricators . | . . . . . . . . . . . . . Repair Stations 2 | . . . . . . . . . . . 2 . Recycling Units . | . . . . . . . . . . . . . Scanalyzers . | . . . . . . . . . . . . . Garrison Access . | . . . . . . . . . . . . . Terminal Hacks 23 | . 1 1 1 . . . . 1 19 . . . Part Schematic 12 | . . . . . . . . . 12 . . . Robot Schematic 4 | . . . . . . . . . 4 . . . Robot Analysis 1 | . 1 . . . . . . . . . . . Prototype ID Bank 3 | . . . . . . . . . 3 . . . Open Door 2 | . . 1 . . . . . 1 . . . . Proto ID Catalog 1 | . . . 1 . . . . . . . . . Fabricator Hacks . | . . . . . . . . . . . . . Repair Station Hacks 1 | . . . . . . . . . . . 1 . Scan Component 1 | . . . . . . . . . . . 1 . Recycling Unit Hacks . | . . . . . . . . . . . . . Scanalyzer . | . . . . . . . . . . . . . Garrison Access Hacks . | . . . . . . . . . . . . . Unauthorized Hacks 2 | . 1 . . . . 1 . . . . . . Terminals 2 | . 1 . . . . 1 . . . . . . Botnet 2 | . 1 . . . . 1 . . . . . . Fabricators . | . . . . . . . . . . . . . Repair Stations . | . . . . . . . . . . . . . Recycling Units . | . . . . . . . . . . . . . Scanalyzers . | . . . . . . . . . . . . . Garrison Access . | . . . . . . . . . . . . . Data Cores Recovered . | . . . . . . . . . . . . . Used . | . . . . . . . . . . . . . Hacking Detections 5 | . 3 . . . . 2 . . . . . . Full Trace Events . | . . . . . . . . . . . . . Feedback Events . | . . . . . . . . . . . . . Feedback Blocked . | . . . . . . . . . . . . . Robot Schematics Acquired 4 | . . . . . . . . . 4 . . . Robots Built . | . . . . . . . . . . . . . Authchips . | . . . . . . . . . . . . . Time . | . . . . . . . . . . . . . Total Robot Build Rating . | . . . . . . . . . . . . . Part Schematics Acquired 12 | . . . . . . . . . 12 . . . Parts Built . | . . . . . . . . . . . . . Authchips . | . . . . . . . . . . . . . Time . | . . . . . . . . . . . . . Total Part Build Rating . | . . . . . . . . . . . . . Parts Repaired . | . . . . . . . . . . . . . Time . | . . . . . . . . . . . . . Parts Recycled . | . . . . . . . . . . . . . Recycled Matter . | . . . . . . . . . . . . . Retrieved Matter . | . . . . . . . . . . . . . Retrieved Components . | . . . . . . . . . . . . . Parts Scanalyzed . | . . . . . . . . . . . . . Part Schematics Acquired . | . . . . . . . . . . . . . Parts Damaged . | . . . . . . . . . . . . . Bothacking | -11 -10 -10 -10 -9 -8 -7 -7 -7 -7 -6 -6 -6 ------------ Run | Yrd Mat Min Exi Min Mat Fac Low Low Dat Pro Fac Low Used RIF Installer . | . . . . . . . . . . . . . Robots Hacked . | . . . . . . . . . . . . . Non-combat . | . . . . . . . . . . . . . Combat . | . . . . . . . . . . . . . Robot Hacks Applied . | . . . . . . . . . . . . . Relay Couplers Released . | . . . . . . . . . . . . . Fabnet Peak Effective % . | . . . . . . . . . . . . . Robots Rewired . | . . . . . . . . . . . . . Allies Hacked 1 | . . . . . . 1 . . . . . . Hacks Repelled . | . . . . . . . . . . . . . Allies | -11 -10 -10 -10 -9 -8 -7 -7 -7 -7 -6 -6 -6 -------- Run | Yrd Mat Min Exi Min Mat Fac Low Low Dat Pro Fac Low Total Allies 4 | . . 1 . . 1 1 1 . . . . . Largest Group 1 | . . 1 . . 1 1 1 1 . . . . Highest-Rated Group 85 | . . 31 . . 15 21 85 85 . . . . Highest-Rated Ally 85 | . . 31 . . 15 21 85 85 . . . . Total Orders . | . . . . . . . . . . . . . Ally Attacks 19 | . . 2 . . . 12 . 5 . . . . Total Damage 504 | . . 42 . . . 245 . 217 . . . . Kills 3 | . . 1 . . . 1 . 1 . . . . Allies Corrupted . | . . . . . . . . . . . . . Allies Melted 1 | . . . . . . . . 1 . . . . Field Lobotomies 3 | . . . . . 1 1 1 . . . . . Intel | -11 -10 -10 -10 -9 -8 -7 -7 -7 -7 -6 -6 -6 ------- Run | Yrd Mat Min Exi Min Mat Fac Low Low Dat Pro Fac Low Active Infowar (turns) 7701 | 82 523 662 279 349 788 1131 1022 104 . . 467 2294 Terrain 5457 | . . 184 279 349 788 1096 . . . . 467 2294 Seismic 2853 | 82 523 478 . . . . 981 104 . . . 685 Jamming 1053 | . . . . . . 1012 41 . . . . . Robot Analysis Total 1 | . 1 . . . . . . . . . . . Derelict Logs Recovered 3 | . . . . . . . 1 1 . . . 1 Drone Launches . | . . . . . . . . . . . . . Drone Recoveries . | . . . . . . . . . . . . . Exploration | -11 -10 -10 -10 -9 -8 -7 -7 -7 -7 -6 -6 -6 ------------- Run | Yrd Mat Min Exi Min Mat Fac Low Low Dat Pro Fac Low Turns Passed 9286 | 187 569 897 279 349 788 1131 1022 572 130 572 475 2315 Spaces Moved 4855 | 115 366 443 231 163 506 824 600 316 82 281 250 678 Core 160 | 11 . . . . . . . . . . . 149 Treads 1501 | . . . . . . . 63 316 82 261 250 529 Legs 3194 | 104 366 443 231 163 506 824 537 . . 20 . . Wheels . | . . . . . . . . . . . . . Hover . | . . . . . . . . . . . . . Flight . | . . . . . . . . . . . . . Fastest Speed 50 | 50 120 120 120 190 120 120 122 160 160 160 160 160 Average Speed 164 | 115 120 138 120 191 120 120 153 169 160 166 165 318 Slowest Speed 750 | 120 120 190 120 400 120 122 240 240 160 330 240 750 Overloaded Moves . | . . . . . . . . . . . . . Propulsion Burnouts . | . . . . . . . . . . . . . Robots Hopped . | . . . . . . . . . . . . . Potential Cave-ins . | . . . . . . . . . . . . . Cave-ins Triggered . | . . . . . . . . . . . . . Exploration Rate (%) 47 | 6 60 66 62 44 36 15 72 60 69 50 9 70 Regions Visited 12 Branch Regions 8 Pre-discovered Areas 3 | . . 1 . 1 . . . 1 . . . . Known Exits Taken 6 | . . . . . . 1 1 1 1 1 1 . Unknown Exits Taken 6 | 1 1 1 1 1 1 . . . . . . . Scrap Searched 7 | . . . . 2 . . 2 1 . . . 2 Spaces Dug 15 | . . . . . 8 1 . . . . 6 . Terrain Destroyed 423 | . 41 129 . 44 60 2 71 3 . 61 6 6 Melee 15 | . . . . . 8 1 . . . . 6 . Projectile 8 | . . . . . . 1 1 . . . . 6 AOE 400 | . 41 129 . 44 52 . 70 3 . 61 . . Terrain Rammed . | . . . . . . . . . . . . . Walls Destroyed . | . . . . . . . . . . . . . Machines Disabled . | . . . . . . . . . . . . . Actions | -11 -10 -10 -10 -9 -8 -7 -7 -7 -7 -6 -6 -6 --------- Run | Yrd Mat Min Exi Min Mat Fac Low Low Dat Pro Fac Low Total 5760 | 144 452 670 234 193 655 927 648 334 81 319 296 807 Wait 556 | . 36 172 . 18 114 61 16 1 . . 26 112 Move 4843 | 114 365 442 230 162 505 823 599 315 81 280 249 678 Hop . | . . . . . . . . . . . . . Pick Up 38 | 9 4 6 1 3 6 4 . 3 . . 2 . Fast Attach 14 | 6 . . . . . 1 2 3 . 1 1 . Attach 22 | 1 1 3 . 2 4 2 2 1 . 2 3 1 Detach 4 | . . . 1 . . 1 . . . . 2 . Swap 51 | . 11 7 . 2 7 8 4 2 . 6 3 1 Drop 30 | 1 8 7 2 2 2 6 . 1 . . 1 . Fire 179 | 13 26 33 . 4 9 15 25 8 . 30 2 14 Melee 17 | . . . . . 8 2 . . . . 7 . Ram . | . . . . . . . . . . . . . Kick 1 | . 1 . . . . . . . . . . . Crush . | . . . . . . . . . . . . . Escape Stasis 4 | . . . . . . 4 . . . . . . Rewire 1 | . . . . . . . . . . . . 1 Trap . | . . . . . . . . . . . . . Miscellaneous . | . . . . . . . . . . . . . Route ------- -11/Scrapyard -10/Materials (discovered 2 exits: [*Mat] / *Min) -10/Mines (discovered 3 exits: [*Mat x2] / *Exi) -10/Exiles (discovered 2 exits: [*Min x2]) -9/Mines -8/Materials -7/Factory -7/Lower Caves -7/Lower Caves (discovered 2 exits: *Fac / *Dat) -7/Data Miner -6/Proximity Caves -6/Factory -6/Lower Caves History --------- Turn | Location | Event 16 | -11/Scrapyard | Discovered new exit (range 15) 188 | -11/Scrapyard | Entered Materials 314 | -10/Materials | Build established: Mutant 346 | -10/Materials | Discovered new exit (range 7) 567 | -10/Materials | Discovered new exit (range 16) 757 | -10/Materials | Entered Mines 774 | -10/Mines | Escorted by a lone wolf Derelict 794 | -10/Mines | Learned location of Storage (-7) 910 | -10/Mines | Deemed a non-threat by the Exiles lab entrance 911 | -10/Mines | Discovered new exit (range 5) 949 | -10/Mines | Discovered new exit (range 3) 1003 | -10/Mines | Core integrity fell below 50% 1092 | -10/Mines | Build established: Scavenger-Mutant 1202 | -10/Mines | Discovered new exit (range 8) 1204 | -10/Mines | Excavation squad dispatched 1204 | -10/Mines | A large section of the Mines collapsed 1386 | -10/Mines | Met a Derelict who couldn't figure out how to use a Trap Extractor 1529 | -10/Mines | Build established: Mutant 1654 | -10/Mines | Entered Exiles 1674 | -10/Exiles | Discovered new exit (range 15) 1687 | -10/Exiles | Met 8R-AWN 1706 | -10/Exiles | Met EX-HEX 1745 | -10/Exiles | Met EX-BIN 1763 | -10/Exiles | Aligned with FarCom system 1765 | -10/Exiles | Given EX-Vault access code 1796 | -10/Exiles | Opened EX-Vault 1806 | -10/Exiles | Found Field Lobotomy Kit 1829 | -10/Exiles | Warned to stay clear of 0b10 Research branches 1846 | -10/Exiles | Exiles lab attacked by MAIN.C 1923 | -10/Exiles | Discovered new exit (range 10) 1933 | -10/Exiles | Left Exiles lab with Field Lobotomy Kit 1933 | -10/Exiles | Entered Mines 1934 | -9/Mines | Assembled infested the area 2227 | -9/Mines | Build established: Skirmisher 2260 | -9/Mines | Discovered new exit (range 7) 2282 | -9/Mines | Entered Materials 2282 | -8/Materials | Evolved 4 slots: Propulsion x2, Utility x2 3019 | -8/Materials | Discovered new exit (range 3) 3028 | -8/Materials | Assimilated Y-45 Defender with FLK Orb 3070 | -8/Materials | Entered Factory 3070 | -7/Factory | Accompanied by 1 ally 3070 | -7/Factory | Evolved 2 slots: Power x1, Utility x1 3267 | -7/Factory | Build established: Scavenger-Skirmisher 3646 | -7/Factory | Build established: Scavenger-Assassin 3935 | -7/Factory | Discovered new exit (range 14) 3988 | -7/Factory | Assimilated H-55 Commando with FLK Orb 4145 | -7/Factory | Build established: Scavenger-Skirmisher 4197 | -7/Factory | Identified exit to Lower Caves 4201 | -7/Factory | Entered Lower Caves 4381 | -7/Lower Caves | Learned location of 1 exit from Factory 4607 | -7/Lower Caves | Build established: Mutant 4654 | -7/Lower Caves | Attracted the attention of an 0b10 outpost 4715 | -7/Lower Caves | Lost 4 parts (2p1n1w) 4971 | -7/Lower Caves | Spotted B-75 Beast 4995 | -7/Lower Caves | Assimilated B-75 Beast with FLK Orb 5173 | -7/Lower Caves | Discovered new exit (range 8) 5190 | -7/Lower Caves | Identified exit to Lower Caves 5223 | -7/Lower Caves | Entered another Lower Caves area 5223 | -7/Lower Caves | Accompanied by 1 ally 5356 | -7/Lower Caves | Discovered new exit (range 9) 5366 | -7/Lower Caves | Identified exit to Factory 5431 | -7/Lower Caves | Learned location of Extension (-6) 5455 | -7/Lower Caves | Encountered a Warlord checkpoint 5626 | -7/Lower Caves | Build established: Scavenger-Mutant 5691 | -7/Lower Caves | Attracted the attention of an 0b10 checkpoint 5747 | -7/Lower Caves | Discovered new exit (range 11) 5766 | -7/Lower Caves | Identified exit to Data Miner 5795 | -7/Lower Caves | Entered Data Miner 5795 | -7/Data Miner | Discovered new exit (range 6) 5808 | -7/Data Miner | Identified exit to Proximity Caves 5829 | -7/Data Miner | Met Data Miner 5890 | -7/Data Miner | Received God Mode back door access code from Data Miner 5925 | -7/Data Miner | Entered Proximity Caves 6319 | -6/Proximity Caves | Lost 3 parts (1p1n1w) 6425 | -6/Proximity Caves | Discovered exit to Factory (range 5) 6497 | -6/Proximity Caves | Entered Factory 6497 | -6/Factory | Evolved 2 slots: Utility x1, Weapon x1 6498 | -6/Factory | Identified exit to Lower Caves 6898 | -6/Factory | Build established: Scavenger-Assassin 6972 | -6/Factory | Entered Lower Caves 7200 | -6/Lower Caves | Build established: Scavenger-Skirmisher 7671 | -6/Lower Caves | Attracted the attention of an 0b10 checkpoint 7713 | -6/Lower Caves | Lost 3 parts (1p1n1u) 7979 | -6/Lower Caves | Spotted B-75 Beast 8088 | -6/Lower Caves | Learned 4 Factory zone layouts 8535 | -6/Lower Caves | Build established: Mutant 9254 | -6/Lower Caves | Lost 5 parts (3u2w) 9257 | -6/Lower Caves | Core integrity fell below 50% 9287 | -6/Lower Caves | Self-destructed Last Messages --------------- 08424_ Found Force Field. 08424_ Found 36 Matter. 08473_ System corrupted: Matter fused (-8). 08514_ Acquired 8 matter. 08759_ System corrupted: Energy discharge (-32). 08831_ System corrupted: Matter fused (-10). 09080_ System corrupted: Component data lost. 09126_ System corrupted: Matter fused (-6). 09182_ Acquired 17 matter. 09191_ Imp. Medium Armor Plating destroyed. 09192_ Imp. Cooling System destroyed. 09200_ Hvy. Plasma Cannon destroyed. 09202_ Minigun destroyed. 09220_ Searching scrap... 09220_ Found 68 Matter. 09220_ Found Mak. Sword. 09220_ Found 53 Matter. 09223_ Imp. Terrain Scan Processor destroyed. 09266_ Imp. Terrain Scanner destroyed. 09274_ U6